Cogmind - Beta 14 @@@ ROGUE MODE // 2025.03.26 @ 17:21:09 Player: Cogchaaaan Result: Destroyed by Y-72 Warden with Railgun Performance ------------- Evolutions (7) 3500 Regions Visited (16) 3200 Robots Destroyed (223) 1115 Value Destroyed (7934) 7934 Prototype IDs (23) 460 Alien Tech Used (0) 0 Bonus (3580) 3580 TOTAL SCORE: 19789 Bonus ------- High Alert Combat Kills 515 Follower Combat Kills 635 Met R17 at Cetus 500 Met R17 at Research 2000 Friendly Fire -70 Cogmind --------- Core Integrity 0/1300 Matter 114/300 Energy 100/100 System Corruption 19% Temperature Cool (1) Movement Flying (30) Location -3/Testing Parts ------- > --- POWER (2) -------- (None) > --- PROPULSION (5) --- Improved Diametric Drive > --- UTILITY (11) ----- (None) > --- WEAPON (3) ------- (None) > --- INVENTORY (5) ---- Light Angular Momentum Engine Improved Sensor Array Advanced Weapon Cycler Centrium Medium Armor Plating Improved Plasma Cutter Peak State ------------ > --- POWER ------------ Light Antimatter Reactor Light Antimatter Reactor > --- PROPULSION ------- VSS-Antigrav Exoskeleton > --- UTILITY ---------- Armored Scrap Engine Advanced Heat Sink Advanced Heat Sink High-capacity Storage Unit Structural Scanner Improved Sensor Array Advanced Signal Interpreter Advanced Targeting Computer Centrium Medium Armor Plating Advanced System Shield > --- WEAPON ----------- Hvy. Kinetic Linear Construct/C Force Lance > --- INVENTORY -------- Light Angular Momentum Engine Particle Reactor Particle Reactor Quantum Reactor Armored Wheel Advanced Heat Sink Large Storage Unit Energy Well Compact Matter Pod Advanced Weapon Cycler Hardened Medium Armor Plating Improved Medium Armor Plating Layered Medium Armor Plating Centrium Medium Armor Plating Improved Force Field Heavy Phase Cannon Heavy Shock Bomb Launcher Heavy Shock Bomb Launcher Improved Plasma Cutter Heavy Pick [Rating: 146] Favorites ----------- Power Light Ion Engine Engine Light Ion Engine Power Core Neutrino Core Reactor Light Antimatter Reactor Propulsion Light Treads Treads Light Treads Leg Constructs Wheel Armored Wheel Hover Unit Aerolev Unit Flight Unit Improved Diametric Drive Utility Advanced Heat Sink Device Advanced Heat Sink Storage Huge Storage Unit Processor Improved Signal Interpreter Hackware Advanced System Shield Protection Centrium Medium Armor Plating Weapon Beam Rifle Energy Gun Beam Rifle Energy Cannon Particle Cannon Ballistic Gun Enhanced Autogun Ballistic Cannon Constructs Launcher Heavy Shock Bomb Launcher Special Weapon Improved Plasma Cutter Slashing Weapon Axe Piercing Weapon Heavy Pick Build | -11 -10 -10 -9 -9 -8 -8 -8 -6 -5 -4 -4 -4 -4 -4 -3 -3 ------- Run | Yrd Mat Min Mat Min Mat Sto Rec Fac Fac Fac Ext Cet Arc Hub Res Tes Slots Evolved 14 | . . . 2 . 2 . . 4 2 2 . . . . 2 . Power 1 | . . . . . . . . . 1 . . . . . . . Propulsion 3 | . . . 1 . . . . 1 . . . . . . 1 . Utility 9 | . . . . . 2 . . 3 1 2 . . . . 1 . Weapon 1 | . . . 1 . . . . . . . . . . . . . Parts Attached 265 | 7 21 9 33 2 53 14 12 30 17 10 14 5 7 6 12 13 Power 34 | 1 1 1 2 . 4 2 1 1 5 1 5 . 3 2 2 3 Engine 20 | 1 1 1 2 . 3 2 1 1 5 . 1 . 1 1 . . Core 6 | . . . . . 1 . . . . 1 3 . . . . 1 Reactor 8 | . . . . . . . . . . . 1 . 2 1 2 2 Propulsion 36 | 2 4 2 6 . 14 3 2 . . . . . . . . 3 Treads 25 | . . 2 5 . 14 2 2 . . . . . . . . . Leg 6 | 2 4 . . . . . . . . . . . . . . . Wheel 1 | . . . . . . . . . . . . . . . . 1 Hover 1 | . . . . . . 1 . . . . . . . . . . Flight 3 | . . . 1 . . . . . . . . . . . . 2 Utility 128 | 2 10 4 17 2 18 2 3 21 9 9 7 2 4 4 9 5 Device 86 | 1 9 4 15 2 9 1 1 13 5 6 4 1 4 . 7 4 Storage 8 | 1 1 . 2 . . . 1 2 1 . . . . . . . Processor 7 | . . . . . 1 . 1 1 . . 1 . . . 2 1 Hackware 1 | . . . . . . . . . . 1 . . . . . . Protection 26 | . . . . . 8 1 . 5 3 2 2 1 . 4 . . Artifact . | . . . . . . . . . . . . . . . . . Weapon 67 | 2 6 2 8 . 17 7 6 8 3 . 2 3 . . 1 2 Energy Gun 26 | 1 5 1 6 . 7 5 . . . . . . . . . 1 Energy Cannon 3 | . . . . . 2 . . 1 . . . . . . . . Ballistic Gun 13 | 1 . . . . 5 1 3 3 . . . . . . . . Ballistic Cannon 3 | . . 1 1 . 1 . . . . . . . . . . . Launcher 7 | . 1 . 1 . 2 1 . . 1 . . 1 . . . . Special Weapon 1 | . . . . . . . . . . . 1 . . . . . Impact Weapon . | . . . . . . . . . . . . . . . . . Slashing Weapon 7 | . . . . . . . 3 4 . . . . . . . . Piercing Weapon 7 | . . . . . . . . . 2 . 1 2 . . 1 1 Special Melee Weapon . | . . . . . . . . . . . . . . . . . Unidentified Prototypes 17 | . . . 2 . 2 5 1 2 1 . . 1 . . . 3 Parts Lost 55 | . . 6 1 . 13 3 1 . 1 1 2 1 . . . 26 Power 8 | . . 1 1 . 1 1 . . . . . . . . . 4 Propulsion 15 | . . 2 . . 5 . 1 . . . . . . . . 7 Utility 21 | . . 1 . . 3 2 . . 1 1 2 . . . . 11 Weapon 11 | . . 2 . . 4 . . . . . . 1 . . . 4 Highest Loss Streak 17 | . . 6 1 . 7 2 1 . 1 1 1 1 . . . 17 To Critical Strikes 3 | . . . . . . . . . . . . 1 . . . 2 Average Slot Usage (%) 85 | . 100 95 94 100 98 99 87 65 67 70 71 73 73 69 70 52 Engine 7 | . 14 12 9 11 5 9 9 6 9 5 3 5 5 4 3 . Core 1 | . . . . . 3 . . . . 4 5 5 4 . . . Treads 15 | . . 3 31 33 25 26 20 3 3 5 1 . 5 5 2 . Leg 2 | . 28 22 . . . . . . . . 3 4 . . . 1 Device 14 | . 14 13 11 11 13 8 9 18 22 18 20 20 21 13 21 17 Storage 8 | . 14 14 11 11 9 9 9 6 5 5 5 5 5 5 4 3 Processor 6 | . . . . . 8 9 9 13 10 5 9 10 10 10 9 7 Hackware 1 | . . . . . . . . . . 5 5 5 5 5 4 2 Protection 3 | . . . . . 4 8 5 . . 9 4 5 5 7 6 . Energy Gun 12 | . 27 25 27 33 18 17 7 . . . . 1 . . . . Ballistic Gun 3 | . . . . . 5 9 11 . . . . . . . . . Ballistic Cannon 2 | . . 2 4 . 2 . 2 6 5 5 5 7 1 . 2 3 Piercing Weapon 1 | . . . . . . . . . 1 5 4 1 5 5 4 1 Peak Build Rating 146 | 7 11 11 18 17 31 36 51 68 89 104 114 120 126 125 138 146 Average Rating 50 | 5 9 10 14 16 24 31 35 60 79 97 110 113 123 123 129 111 On Entrance 61 | . 7 11 9 16 17 31 29 50 62 83 104 113 120 124 124 138 Naked Turns 11 | . . . . . . . . . . . . . . . . 11 Heaviest Build 108 | 13 33 32 93 93 108 104 98 57 80 85 97 105 87 92 94 94 Greatest Support 149 | 20 20 40 60 60 60 60 60 63 103 103 103 93 93 93 149 149 Greatest Overweight (x) 30 | 2 1 1 1 1 2 2 30 1 . . 1 1 . . . 15 Average Overweight (x) . | . . . . 1 1 1 1 . . . . . . . . . Largest Inventory Capacity 25 | 8 15 15 25 25 25 25 25 20 20 20 20 20 20 20 20 20 Average Capacity 20 | 7 10 15 19 25 25 25 23 15 18 20 20 20 20 20 20 18 Most Carried 25 | 4 15 15 22 23 25 25 25 15 19 19 20 20 19 20 20 20 Average Carried 18 | 3 9 14 16 22 20 24 22 14 16 17 19 19 18 19 18 17 Final Capacity 25 | 8 15 15 25 25 25 25 15 15 20 20 20 20 20 20 20 5 Final Carried 25 | 4 15 10 22 23 25 23 15 14 19 18 20 18 19 20 20 5 Scrap Engine Consumption 91 | . . . . . . . 14 14 8 6 7 12 3 1 13 13 Constructs Created 4 | . . . . . . . 2 . . . . 1 . . . 1 Constructs Modified 32 | . . . . . . . 2 3 7 1 4 3 3 . 5 4 Class Distribution -------------------- 39% | Scavenger-Gunner 13% | Mutant 13% | Scavenger-Mutant 7% | Construct 6% | Gunner 6% | Assassin 4% | Scavenger-Assassin Dominant Class ---------------- Mutant | -10/Materials Scavenger-Mutant | -10/Mines Scavenger-Gunner | -9/Materials Scavenger-Gunner | -9/Mines Scavenger-Gunner | -8/Materials Scavenger-Gunner | -8/Storage Scavenger-Gunner | -8/Recycling Assassin | -6/Factory Construct | -5/Factory Assassin | -4/Factory Mutant | -4/Extension Scavenger-Mutant | -4/Cetus Scavenger-Mutant | -4/Archives Scavenger-Mutant | -4/Hub_04(d) Scavenger-Assassin | -3/Research Scavenger-Scout | -3/Testing Resources | -11 -10 -10 -9 -9 -8 -8 -8 -6 -5 -4 -4 -4 -4 -4 -3 -3 ----------- Run | Yrd Mat Min Mat Min Mat Sto Rec Fac Fac Fac Ext Cet Arc Hub Res Tes Matter Collected 6009 | 294 281 310 405 53 768 386 350 347 309 481 610 125 444 160 314 372 Remotely . | . . . . . . . . . . . . . . . . . Salvage Created 10120 | 213 572 77 961 45 1956 986 1164 453 279 517 1493 246 516 198 145 299 Parts 454 | 21 20 7 49 5 100 39 44 34 11 26 41 8 17 11 8 13 Haulers Intercepted 15 | . 2 . 3 . 5 4 1 . . . . . . . . . Recyclers Shooed 1 | . . . 1 . . . . . . . . . . . . . Parts Field Recycled . | . . . . . . . . . . . . . . . . . Retrieved Matter . | . . . . . . . . . . . . . . . . . Parts Self-Destructed . | . . . . . . . . . . . . . . . . . Prevented . | . . . . . . . . . . . . . . . . . Kills | -11 -10 -10 -9 -9 -8 -8 -8 -6 -5 -4 -4 -4 -4 -4 -3 -3 ------- Run | Yrd Mat Min Mat Min Mat Sto Rec Fac Fac Fac Ext Cet Arc Hub Res Tes Combat Hostiles Destroyed 158 | . 12 5 17 4 41 14 9 5 6 5 18 3 4 3 3 9 Melee 1 | . . . . . . . . . . . . . . . . 1 Guns 83 | . 7 4 14 4 30 14 9 1 . . . . . . . . Cannons 49 | . . 1 1 . 1 . . 4 2 4 18 . 4 3 3 8 AOE 16 | . 3 . . . 8 . . . 4 1 . . . . . . Classes Destroyed 21 | 2 5 1 2 . 4 . 3 . . . 2 . 1 . . 1 Worker 10 | . 1 . . . 3 . . 1 . 4 . . . . 1 . Builder 5 | . . . 1 . 3 . . . . . 1 . . . . . Tunneler 10 | 8 . . 1 . . . . . . . . . . . 1 . Hauler 15 | . 2 . 3 . 5 4 1 . . . . . . . . . Recycler 15 | 1 . . 2 . 1 1 7 . . 1 2 . . . . . Operator 4 | . . . . . . . . . . . . . 4 . . . Watcher 12 | . 2 . 2 . 3 . . 3 . . 1 1 . . . . Swarmer 33 | . 3 3 4 4 10 . . . 4 . 2 . . . 3 . Grunt 51 | . 9 . 6 . 18 11 1 . . . 6 . . . . . Brawler 3 | . . . . . 2 1 . . . . . . . . . . Duelist 1 | . . . . . 1 . . . . . . . . . . . Sentry 36 | . . . 7 . 7 2 4 4 2 2 3 . 4 1 . . Demolisher 4 | . . 2 . . . . . . . . . . . . . 2 Specialist 2 | . . . . . 2 . . . . . . . . . . . Hunter 3 | . . . . . . . . . . . 2 . . . . 1 Programmer 10 | . . . . . . . 1 1 . 3 3 . . 2 . . Heavy 1 | . . . . . 1 . . . . . . . . . . . Behemoth 2 | . . . . . . . . . . . 2 . . . . . Cetus Guard 3 | . . . . . . . . . . . . 3 . . . . Scientist 2 | . . . . . . . 2 . . . . . . . . . Scrapper 3 | . . . . . . . 3 . . . . . . . . . Assembled 6 | . . . . . . . . . . . . . . . . 6 Best Kill Streak 9 | 2 5 3 3 4 6 5 5 2 4 4 9 4 4 2 2 6 Combat Bots Only 6 | . 5 3 3 4 6 4 3 1 4 3 5 3 4 2 2 6 Max Kills in Single Turn 2 | 1 2 1 1 2 2 2 2 1 2 2 2 2 1 1 1 1 Gunslinging 1 | . . . . . 1 . . . . . . . . . . . Exploded 2 | . 1 . . . 2 . . . 2 1 . . . . . . Melee 1 | . . . . . . . . . . . . . . . . 1 Uniques/NPCs Destroyed . | . . . . . . . . . . . . . . . . . Combat | -11 -10 -10 -9 -9 -8 -8 -8 -6 -5 -4 -4 -4 -4 -4 -3 -3 -------- Run | Yrd Mat Min Mat Min Mat Sto Rec Fac Fac Fac Ext Cet Arc Hub Res Tes Hostile Shots Fired 1196 | . 54 24 72 15 202 53 33 81 37 32 110 35 41 26 20 361 Missed 355 | . 18 6 25 1 54 10 4 26 7 10 27 14 12 10 8 123 Damage Taken 15606 | . 425 523 602 107 2511 674 475 421 642 486 1421 450 774 365 332 5398 Core 2552 | . 125 114 107 7 193 122 26 47 67 119 187 28 81 24 47 1258 Absorbed by Shields 843 | . . . . . . . . . . . 662 136 . . . 45 Redirected to Shielding 109 | . . . . . . . . 7 63 39 . . . . . . Regen/Repaired (Parts) 2396 | . . . 150 . . . 15 117 271 37 612 513 143 . 362 176 Core Remaining (%) 65 | 100 . 4 . 71 . . 38 94 93 . . . . 61 . . Volleys Fired 672 | 34 42 11 65 6 127 60 33 28 25 20 86 19 36 18 19 43 Largest 3 | 2 2 2 3 3 3 3 3 2 1 1 1 2 1 1 1 1 Hottest 192 | 60 112 112 168 168 192 147 147 119 94 52 52 81 68 68 166 122 Shots Fired 1230 | 68 80 19 163 19 333 152 94 36 25 20 85 21 36 18 19 42 Gun 887 | 68 76 16 147 19 307 152 91 9 . . . . . . . 2 Cannon 316 | . . 3 15 . 17 . 3 27 20 20 85 13 36 18 19 40 Launcher 27 | . 4 . 1 . 9 . . . 5 . . 8 . . . . Special . | . . . . . . . . . . . . . . . . . Kinetic 496 | 34 . 3 15 . 69 51 57 36 20 20 85 13 36 . 17 40 Thermal 705 | 34 76 16 147 19 255 101 37 . . . . . . 18 2 . Explosive 14 | . 4 . 1 . 9 . . . . . . . . . . . Electromagnetic 15 | . . . . . . . . . 5 . . 8 . . . 2 Robot Hit Streak 24 | 14 21 7 13 4 12 16 19 24 14 20 11 6 12 24 6 6 Robot Miss Streak 6 | 2 2 1 6 4 4 5 1 3 1 1 5 3 2 . 3 3 Penetration Max 1 | . . . . . . . . . . 1 1 1 . . . . Secondary Targets 15 | . 3 . . 2 9 . 1 . . . . . . . . . Max Gunslinging Chain 1 | . 1 . . 1 1 . 1 . . . . . . . . . Shots Hit Robots 865 | 52 60 13 100 9 214 99 73 26 20 21 70 8 39 18 15 28 Core Hits 361 | 14 27 8 37 4 102 36 25 16 9 9 28 10 12 4 5 15 Critical Kills 2 | . . . . . . . . . . . 1 . 1 . . . Critical Parts Destroyed 5 | . . . . . 1 . . . . 1 3 . . . . . Critical Strikes 53 | . 3 3 9 . 16 10 1 . . 2 5 . 2 . . 2 Burn 39 | . 3 3 8 . 14 10 1 . . . . . . . . . Destroy 7 | . . . . . 1 . . . . 1 4 . 1 . . . Blast 3 | . . . 1 . 1 . . . . . . . . . . 1 Impale 4 | . . . . . . . . . . 1 1 . 1 . . 1 Melee Attacks 92 | . . . . . . . 4 15 16 8 7 . 14 3 16 9 Impact . | . . . . . . . . . . . . . . . . . Slashing 31 | . . . . . . . 4 15 12 . . . . . . . Piercing 61 | . . . . . . . . . 4 8 7 . 14 3 16 9 Sneak Attacks 23 | . . . . . . . 3 . 2 4 4 . 8 . 2 . Combat Hostiles . | . . . . . . . . . . . . . . . . . Follow-up Attacks . | . . . . . . . . . . . . . . . . . Damage Inflicted 26580 | 493 1066 196 1562 184 4648 1841 1653 1019 1505 1444 4748 1322 2039 844 737 1279 Guns 9615 | 493 898 159 1281 165 3319 1835 1287 150 . . . . . . . 28 Cannons 12186 | . . 37 179 . 276 . 80 791 977 1134 4382 541 1353 844 553 1039 Explosions 2448 | . 161 . 48 . 989 . . 66 363 40 . 781 . . . . Melee 2132 | . . . . . . . 282 . 165 270 366 . 686 . 151 212 Ramming 199 | . 7 . 54 19 64 6 4 12 . . . . . . 33 . Kinetic 13149 | 195 . 37 179 . 613 424 781 941 977 1134 4382 541 1353 . 553 1039 Thermal 8927 | 298 898 159 1281 165 2982 1411 586 . 40 . . 263 . 844 . . Explosive 1238 | . 161 . 48 . 989 . . . . 40 . . . . . . Electromagnetic 935 | . . . . . . . . 66 323 . . 518 . . . 28 Impact . | . . . . . . . . . . . . . . . . . Slashing 447 | . . . . . . . 282 . 165 . . . . . . . Piercing 1685 | . . . . . . . . . . 270 366 . 686 . 151 212 Highest Corruption 19 | . . . 2 2 . . . 1 . 3 4 4 4 . . 19 Average Corruption 3 | . . . 2 2 . . . 1 . 2 3 4 3 . . 13 Corruption Purged 4 | . . . . . . . . . . . . . 4 . . . Corruption Blocked . | . . . . . . . . . . . . . . . . . Effects 88 | . . . 22 10 . . . 3 . . 22 9 8 . . 14 Message Errors 24 | . . . 5 2 . . . 2 . . 6 5 2 . . 2 Matter Fused 25 | . . . 7 3 . . . . . . 7 1 2 . . 5 Heat Flow Errors 8 | . . . 2 1 . . . . . . 3 . 1 . . 1 Energy Discharges 10 | . . . 3 1 . . . 1 . . 2 1 1 . . 1 Data Loss (minor) 9 | . . . 3 1 . . . . . . 2 1 1 . . 1 Data Loss (major) 3 | . . . . . . . . . . . 1 1 . . . 1 Misfires 1 | . . . . 1 . . . . . . . . . . . . Alerts 3 | . . . 1 1 . . . . . . . . 1 . . . Misdirections 2 | . . . . . . . . . . . . . . . . 2 Weapon Failures 3 | . . . 1 . . . . . . . 1 . . . . 1 Overload Shots . | . . . . . . . . . . . . . . . . . Overflow Damage 1254 | . 7 . . . 22 . 84 20 132 227 372 8 203 26 59 94 Projectiles 629 | . . . . . . . 11 20 56 115 243 8 . 26 56 94 Explosions 40 | . 7 . . . 22 . . . 11 . . . . . . . Melee 585 | . . . . . . . 73 . 65 112 129 . 203 . 3 . Knockbacks 63 | . . . 4 . . . 1 1 . 6 31 . 1 . 8 11 Impact 3 | . . . 2 . . . . . . . . . . . 1 . Kinetic 53 | . . . 2 . . . 1 1 . 6 26 . 1 . 7 9 Secondary 7 | . . . . . . . . . . . 5 . . . . 2 Self-Inflicted Damage 34 | . . . . . . . . 2 . . . 32 . . . . Shots 1 | . . . . . . . . . . . . 1 . . . . Rammed 17 | . . . 3 2 7 2 1 2 . . . . . . . . Targets Rammed 23 | . 2 . 4 2 9 2 1 2 . . . . . . 1 . Kicked 3 | . 2 . . . . . . . . . . . . . 1 . Crushed 3 | . . . 1 . 2 . . . . . . . . . . . Highest Temperature 447 | 40 102 92 350 209 333 403 376 318 204 18 206 . 194 1 447 182 Average Temperature 95 | 17 29 37 99 103 95 130 113 85 108 9 66 . 111 1 155 73 Received Heat Transfer 2579 | . 207 . 237 . 801 396 214 114 72 9 221 . 126 54 39 89 Effects 11 | . . . 4 . 2 2 . 1 . . . . . . 2 . Shutdowns 2 | . . . . . . . . . . . . . . . 2 . Energy Bleed 2 | . . . . . . 1 . 1 . . . . . . . . Interference 6 | . . . 3 . 2 1 . . . . . . . . . . Short Circuit 1 | . . . 1 . . . . . . . . . . . . . Siege Activations . | . . . . . . . . . . . . . . . . . Robots Corrupted 5 | . . . . . . . . . . . 1 3 . . 1 . Combat Hostiles 3 | . . . . . . . . . . . . 3 . . . . Parts Fried 11 | . . . . . . . . . 2 . 4 3 . . 2 . Impact Corruptions 2 | . . . . . . . . . . . 1 . . . 1 . Robots Melted 7 | . 3 . 2 . 2 . . . . . . . . . . . Combat Hostiles 6 | . 2 . 2 . 2 . . . . . . . . . . . Parts Melted 69 | . 13 1 10 2 22 10 5 . . . 3 . . 3 . . Heat Transferred 21036 | 675 2516 629 3805 370 7437 3515 1223 . . . . 200 . 666 . . Parts Sabotaged . | . . . . . . . . . . . . . . . . . Parts Stolen . | . . . . . . . . . . . . . . . . . Parts Stripped . | . . . . . . . . . . . . . . . . . Power Chain Reactions 4 | . . . . . . . . . 2 . . 2 . . . . Alert | -11 -10 -10 -9 -9 -8 -8 -8 -6 -5 -4 -4 -4 -4 -4 -3 -3 ------- Run | Yrd Mat Min Mat Min Mat Sto Rec Fac Fac Fac Ext Cet Arc Hub Res Tes Peak Influence 790 | 45 279 106 348 131 622 436 146 161 189 413 790 356 347 178 195 125 Initial 202 | . 29 6 37 26 . 176 111 4 78 92 202 177 142 51 93 2 Average 178 | 19 118 100 128 66 440 241 25 61 82 240 412 269 268 116 82 21 Maximum Alert Level 3 | . 1 . 1 . 2 2 . . . 2 3 1 1 . . . Low Security (%) 66 | 100 88 100 74 100 7 41 100 100 100 29 5 12 36 100 100 100 Level 1 21 | . 11 . 25 . 39 54 . . . 59 50 87 63 . . . Level 2 11 | . . . . . 53 4 . . . 11 40 . . . . . Level 3 . | . . . . . . . . . . . 3 . . . . . Level 4 . | . . . . . . . . . . . . . . . . . Level 5 . | . . . . . . . . . . . . . . . . . High Security . | . . . . . . . . . . . . . . . . . Max Security . | . . . . . . . . . . . . . . . . . Squads Dispatched 30 | . 3 . 2 . 7 2 . 3 1 1 3 . . . 4 4 Investigation 8 | . 1 . 2 . 1 . . 1 . . 1 . . . 2 . Extermination 4 | . . . . . . . . 2 . 1 . . . . . 1 Reinforcement 15 | . 2 . . . 3 2 . . 1 . 2 . . . 2 3 Assault . | . . . . . . . . . . . . . . . . . Garrison 3 | . . . . . 3 . . . . . . . . . . . Intercept . | . . . . . . . . . . . . . . . . . Searches Triggered . | . . . . . . . . . . . . . . . . . Construction Impeded 3 | . . . . . 1 . . . 1 . 1 . . . . . Haulers Reinforced 1 | . . . . . . . . . . . . . . . 1 . Active Scanning Responses . | . . . . . . . . . . . . . . . . . Cargo Convoy Interrupts . | . . . . . . . . . . . . . . . . . Stealth | -11 -10 -10 -9 -9 -8 -8 -8 -6 -5 -4 -4 -4 -4 -4 -3 -3 --------- Run | Yrd Mat Min Mat Min Mat Sto Rec Fac Fac Fac Ext Cet Arc Hub Res Tes Distress Signals 24 | . . . 3 . 4 3 1 . . . 2 2 . . 8 1 Communications Jammed . | . . . . . . . . . . . . . . . . . Distress Signals . | . . . . . . . . . . . . . . . . . Times Spotted 278 | . 19 5 25 4 73 22 7 9 6 5 25 10 15 5 9 39 Peak Tracking Total 15 | . 3 2 5 4 6 7 3 2 5 3 6 5 1 2 3 15 Tactical Retreats 22 | . . . 3 . 10 2 . . 1 . 2 1 . . 1 2 Traps | -11 -10 -10 -9 -9 -8 -8 -8 -6 -5 -4 -4 -4 -4 -4 -3 -3 ------- Run | Yrd Mat Min Mat Min Mat Sto Rec Fac Fac Fac Ext Cet Arc Hub Res Tes Traps Triggered 10 | . 1 . 1 . . . . 1 . . 2 . . 3 . 2 Indirectly . | . . . . . . . . . . . . . . . . . Trap Hack Attempts . | . . . . . . . . . . . . . . . . . Triggered . | . . . . . . . . . . . . . . . . . Disarmed . | . . . . . . . . . . . . . . . . . Reprogrammed . | . . . . . . . . . . . . . . . . . Reused . | . . . . . . . . . . . . . . . . . Traps Extracted . | . . . . . . . . . . . . . . . . . Installed . | . . . . . . . . . . . . . . . . . Triggered . | . . . . . . . . . . . . . . . . . Machines | -11 -10 -10 -9 -9 -8 -8 -8 -6 -5 -4 -4 -4 -4 -4 -3 -3 ---------- Run | Yrd Mat Min Mat Min Mat Sto Rec Fac Fac Fac Ext Cet Arc Hub Res Tes Machines Disabled 27 | . 1 2 3 1 1 4 . 1 2 2 5 . 1 . 3 1 Max in Single Turn 1 | . 1 1 1 1 1 1 . 1 1 1 1 . 1 . 1 1 Garrison Access 1 | . . . . . . . . . 1 . . . . . . . Energy Cycler 1 | . . . . . . . . . . . 1 . . . . . Machines Repaired . | . . . . . . . . . . . . . . . . . Machines Dismantled 1 | . . . . . . . . . . . 1 . . . . . Machines Sabotaged . | . . . . . . . . . . . . . . . . . Overloaded Fab Kills . | . . . . . . . . . . . . . . . . . Hacking | -11 -10 -10 -9 -9 -8 -8 -8 -6 -5 -4 -4 -4 -4 -4 -3 -3 --------- Run | Yrd Mat Min Mat Min Mat Sto Rec Fac Fac Fac Ext Cet Arc Hub Res Tes Machines Accessed 72 | . 7 . 14 . 15 2 10 4 3 4 7 . . . 2 4 Terminals 51 | . 6 . 11 . 9 1 5 3 2 3 7 . . . 1 3 Fabricators 1 | . . . . . . . . 1 . . . . . . . . Repair Stations 4 | . 1 . 1 . 2 . . . . . . . . . . . Recycling Units 9 | . . . 1 . 2 1 4 . . 1 . . . . . . Scanalyzers 2 | . . . 1 . 1 . . . . . . . . . . . Garrison Access 4 | . . . . . 1 . . . 1 . . . . . 1 1 Total Hacks 172 | . 17 . 47 . 36 7 16 7 7 6 16 . . . 5 8 Successful 73 | . 8 . 23 . 13 4 11 1 2 3 6 . . . 1 1 Failed 99 | . 9 . 24 . 23 3 5 6 5 3 10 . . . 4 7 Catastrophic 24 | . 1 . 1 . 8 . 2 3 1 . 4 . . . 3 1 Database Lockouts . | . . . . . . . . . . . . . . . . . Manual 75 | . 9 . 24 . 16 7 7 3 2 . 3 . . . . 4 Terminals 124 | . 15 . 33 . 23 4 9 6 4 5 16 . . . 2 7 Fabricators 1 | . . . . . . . . 1 . . . . . . . . Repair Stations 13 | . 2 . 7 . 4 . . . . . . . . . . . Recycling Units 16 | . . . 4 . 3 3 5 . . 1 . . . . . . Scanalyzers 5 | . . . 3 . 2 . . . . . . . . . . . Garrison Access 11 | . . . . . 4 . . . 3 . . . . . 3 1 Terminal Hacks 31 | . 4 . 9 . 6 . 5 . . 2 4 . . . 1 . Record 2 | . 1 . . . . . 1 . . . . . . . . . Robot Analysis 1 | . . . 1 . . . . . . . . . . . . . Prototype ID Bank 1 | . . . 1 . . . . . . . . . . . . . Open Door 3 | . . . . . . . . . . 1 2 . . . . . Branch Access Points 6 | . 1 . 1 . 1 . 1 . . 1 . . . . 1 . Terminal Index 1 | . . . 1 . . . . . . . . . . . . . Unreport Threat 6 | . . . 1 . 2 . 1 . . . 2 . . . . . Locate Traps 7 | . 1 . 4 . 2 . . . . . . . . . . . Zone Layout 2 | . 1 . . . 1 . . . . . . . . . . . Release Object 2 | . . . . . . . 2 . . . . . . . . . Fabricator Hacks . | . . . . . . . . . . . . . . . . . Repair Station Hacks 8 | . 1 . 6 . 1 . . . . . . . . . . . Scan Component 5 | . 1 . 3 . 1 . . . . . . . . . . . Repair 3 | . . . 3 . . . . . . . . . . . . . Recycling Unit Hacks 7 | . . . 1 . 1 1 3 . . 1 . . . . . . Retrieve Components 7 | . . . 1 . 1 1 3 . . 1 . . . . . . Scanalyzer 4 | . . . 2 . 2 . . . . . . . . . . . Insert Component 2 | . . . 1 . 1 . . . . . . . . . . . Analyze 2 | . . . 1 . 1 . . . . . . . . . . . Garrison Access Hacks 1 | . . . . . . . . . 1 . . . . . . . Seal Access 1 | . . . . . . . . . 1 . . . . . . . Unauthorized Hacks 22 | . 3 . 5 . 3 3 3 1 1 . 2 . . . . 1 Terminals 18 | . 3 . 3 . 3 1 3 1 1 . 2 . . . . 1 Botnet 18 | . 3 . 3 . 3 1 3 1 1 . 2 . . . . 1 Fabricators . | . . . . . . . . . . . . . . . . . Repair Stations . | . . . . . . . . . . . . . . . . . Recycling Units 4 | . . . 2 . . 2 . . . . . . . . . . Reject 2 | . . . 1 . . 1 . . . . . . . . . . Mask 2 | . . . 1 . . 1 . . . . . . . . . . Scanalyzers . | . . . . . . . . . . . . . . . . . Garrison Access . | . . . . . . . . . . . . . . . . . Data Cores Recovered . | . . . . . . . . . . . . . . . . . Used . | . . . . . . . . . . . . . . . . . Hacking Detections 59 | . 7 . 12 . 15 1 6 4 2 1 6 . . . 1 4 Full Trace Events 3 | . . . 2 . 1 . . . . . . . . . . . Feedback Events . | . . . . . . . . . . . . . . . . . Feedback Blocked . | . . . . . . . . . . . . . . . . . Robot Schematics Acquired . | . . . . . . . . . . . . . . . . . Robots Built . | . . . . . . . . . . . . . . . . . Authchips . | . . . . . . . . . . . . . . . . . Time . | . . . . . . . . . . . . . . . . . Total Robot Build Rating . | . . . . . . . . . . . . . . . . . Part Schematics Acquired 1 | . . . . . 1 . . . . . . . . . . . Parts Built . | . . . . . . . . . . . . . . . . . Authchips . | . . . . . . . . . . . . . . . . . Time . | . . . . . . . . . . . . . . . . . Total Part Build Rating . | . . . . . . . . . . . . . . . . . Parts Repaired 3 | . . . 3 . . . . . . . . . . . . . Time 84 | . . . 84 . . . . . . . . . . . . . Parts Recycled . | . . . . . . . . . . . . . . . . . Recycled Matter . | . . . . . . . . . . . . . . . . . Retrieved Matter . | . . . . . . . . . . . . . . . . . Retrieved Components 35 | . . . 10 . 10 8 4 . . 3 . . . . . . Parts Scanalyzed 1 | . . . 1 . . . . . . . . . . . . . Part Schematics Acquired 1 | . . . . . 1 . . . . . . . . . . . Parts Damaged . | . . . . . . . . . . . . . . . . . Bothacking | -11 -10 -10 -9 -9 -8 -8 -8 -6 -5 -4 -4 -4 -4 -4 -3 -3 ------------ Run | Yrd Mat Min Mat Min Mat Sto Rec Fac Fac Fac Ext Cet Arc Hub Res Tes Used RIF Installer . | . . . . . . . . . . . . . . . . . Robots Hacked . | . . . . . . . . . . . . . . . . . Non-combat . | . . . . . . . . . . . . . . . . . Combat . | . . . . . . . . . . . . . . . . . Robot Hacks Applied . | . . . . . . . . . . . . . . . . . Relay Couplers Released . | . . . . . . . . . . . . . . . . . Fabnet Peak Effective % . | . . . . . . . . . . . . . . . . . Robots Rewired 14 | . . . . . . . . . . . 14 . . . . . Allies Hacked . | . . . . . . . . . . . . . . . . . Hacks Repelled . | . . . . . . . . . . . . . . . . . Allies | -11 -10 -10 -9 -9 -8 -8 -8 -6 -5 -4 -4 -4 -4 -4 -3 -3 -------- Run | Yrd Mat Min Mat Min Mat Sto Rec Fac Fac Fac Ext Cet Arc Hub Res Tes Total Allies 21 | . . 2 . . . . . . . . 19 . . . . . Largest Group 11 | . . 2 2 . . . . . . . 11 11 . . . . Highest-Rated Group 474 | . . 39 39 . . . . . . . 474 474 . . . . Highest-Rated Ally 51 | . . 31 31 . . . . . . . 51 51 . . . . Total Orders . | . . . . . . . . . . . . . . . . . Ally Attacks 77 | . . . 8 . . . . . . . 29 40 . . . . Total Damage 1739 | . . . 22 . . . . . . . 733 984 . . . . Kills 12 | . . . . . . . . . . . 5 7 . . . . Allies Corrupted . | . . . . . . . . . . . . . . . . . Allies Melted 1 | . . . . . . . . . . . 1 . . . . . Intel | -11 -10 -10 -9 -9 -8 -8 -8 -6 -5 -4 -4 -4 -4 -4 -3 -3 ------- Run | Yrd Mat Min Mat Min Mat Sto Rec Fac Fac Fac Ext Cet Arc Hub Res Tes Robot Analysis Total 1 | . . . 1 . . . . . . . . . . . . . Derelict Logs Recovered 2 | . . . . 2 . . . . . . . . . . . . Drone Launches . | . . . . . . . . . . . . . . . . . Drone Recoveries . | . . . . . . . . . . . . . . . . . Exploration | -11 -10 -10 -9 -9 -8 -8 -8 -6 -5 -4 -4 -4 -4 -4 -3 -3 ------------- Run | Yrd Mat Min Mat Min Mat Sto Rec Fac Fac Fac Ext Cet Arc Hub Res Tes Turns Passed 16893 | 327 1202 276 2085 772 2800 917 2540 1059 734 359 1032 309 541 317 978 645 Spaces Moved 8955 | 168 686 122 956 309 893 281 896 885 861 394 620 193 315 166 699 511 Core 52 | 11 . . . . . . 18 . . . . . . . . 23 Treads 6060 | . . 19 956 309 893 281 878 441 705 394 183 33 315 166 433 54 Legs 1730 | 157 686 103 . . . . . . . . 437 160 . . 112 75 Wheels 2 | . . . . . . . . . . . . . . . . 2 Hover 650 | . . . . . . . . 413 . . . . . . . 237 Flight 461 | . . . . . . . . 31 156 . . . . . 154 120 Fastest Speed 29 | 50 120 160 160 240 240 240 115 50 50 50 50 50 50 135 114 29 Average Speed 143 | 118 142 185 164 240 250 240 235 95 50 50 90 83 101 135 122 91 Slowest Speed 1550 | 150 190 190 240 240 320 320 1550 185 50 50 120 120 135 135 135 800 Overloaded Moves . | . . . . . . . . . . . . . . . . . Propulsion Burnouts . | . . . . . . . . . . . . . . . . . Robots Hopped 1 | . . . . . . . . . . . . . . . . 1 Cave-ins Triggered 1 | . . . . . . . . . . . . . . . . 1 Exploration Rate (%) 51 | 9 93 29 74 70 82 33 99 29 20 10 73 56 93 16 28 60 Regions Visited 16 Branch Regions 9 Pre-discovered Areas . | . . . . . . . . . . . . . . . . . Known Exits Taken 11 | . 1 . 1 . 1 . . 1 1 1 1 1 1 1 1 . Unknown Exits Taken 5 | 1 . 1 . 1 . 1 1 . . . . . . . . . Scrap Searched 3 | . . 1 . 2 . . . . . . . . . . . . Spaces Dug 44 | . . . . . . . . 18 12 4 . . . 1 6 3 Terrain Destroyed 269 | . 22 . 10 . 57 . 1 24 23 28 37 19 20 1 10 17 Melee 35 | . . . . . . . . 15 9 4 . . . 1 6 . Projectile 102 | . . . . . 2 . 1 9 4 3 37 5 20 . 4 17 AOE 132 | . 22 . 10 . 55 . . . 10 21 . 14 . . . . Terrain Rammed . | . . . . . . . . . . . . . . . . . Walls Destroyed . | . . . . . . . . . . . . . . . . . Machines Disabled . | . . . . . . . . . . . . . . . . . Actions | -11 -10 -10 -9 -9 -8 -8 -8 -6 -5 -4 -4 -4 -4 -4 -3 -3 --------- Run | Yrd Mat Min Mat Min Mat Sto Rec Fac Fac Fac Ext Cet Arc Hub Res Tes Total 11798 | 232 824 152 1322 323 1191 419 1273 1031 1106 520 982 322 469 234 771 627 Wait 1355 | 20 42 8 230 4 61 45 296 52 174 80 62 92 94 37 17 41 Move 8937 | 167 685 121 955 308 892 280 895 884 860 393 619 192 314 165 698 509 Hop 1 | . . . . . . . . . . . . . . . . 1 Pick Up 117 | 4 18 2 20 1 26 5 8 8 7 3 6 4 1 2 1 1 Fast Attach 89 | 7 6 . 12 . 15 9 3 4 5 1 9 2 3 5 3 5 Attach 65 | . . 6 2 . 17 3 2 5 3 9 2 3 . 1 6 6 Detach 30 | . . . 1 . 1 . . 2 2 5 4 1 . 1 7 6 Swap 111 | . 15 3 19 2 21 2 7 21 9 . 3 . 4 . 3 2 Drop 133 | . 14 1 14 . 22 13 24 10 5 1 11 9 3 2 . 4 Fire 672 | 34 42 11 65 6 127 60 33 28 25 20 86 19 36 18 19 43 Melee 92 | . . . . . . . 4 15 16 8 7 . 14 3 16 9 Ram 1 | . . . . . . . . 1 . . . . . . . . Kick 3 | . 2 . . . . . . . . . . . . . 1 . Crush 19 | . . . 4 2 9 2 1 1 . . . . . . . . Escape Stasis 10 | . . . . . . . . . . . 10 . . . . . Rewire 155 | . . . . . . . . . . . 155 . . . . . Trap . | . . . . . . . . . . . . . . . . . Miscellaneous 8 | . . . . . . . . . . . 8 . . . . . Route ------- -11/Scrapyard -10/Materials (discovered 4 exits: *Mat x3 / *Min) -10/Mines -9/Materials (discovered 4 exits: *Mat x2 / *Min x2) -9/Mines (discovered 3 exits: *Mat x2 / [*Zio]) -8/Materials (discovered 5 exits: *Fac x3 / *Sto x2) -8/Storage -8/Recycling -6/Factory (discovered 2 exits: *Fac / *Low) -5/Factory -4/Factory (discovered 4 exits: Upp x2 / *Ext x2) -4/Extension (discovered 3 exits: *Res x2 / *Cet) -4/Cetus (discovered 2 exits: *Res / *Arc) -4/Archives (discovered 3 exits: *Res / *Hub x2) -4/Hub_04(d) -3/Research (discovered 4 exits: *Res / *Arm / *Tes x2) -3/Testing History --------- Turn | Location | Event 27 | -11/Scrapyard | Discovered new exit (range 16) 328 | -11/Scrapyard | Entered Materials 347 | -10/Materials | Build established: Mutant 562 | -10/Materials | Identified exit to Mines 640 | -10/Materials | Discovered new exit (range 8) 727 | -10/Materials | Discovered new exit (range 14) 1017 | -10/Materials | Discovered new exit (range 10) 1398 | -10/Materials | Build established: Scavenger-Mutant 1530 | -10/Materials | Entered Mines 1736 | -10/Mines | Assembled infested the area 1741 | -10/Mines | Assisted by a Guerilla fighting off Assembled 1748 | -10/Mines | Core integrity fell below 50% 1761 | -10/Mines | Core integrity fell below 20% 1781 | -10/Mines | Discovered new exit (range 9) 1791 | -10/Mines | Lost 6 parts (1p2n1u2w) 1806 | -10/Mines | Entered Materials 1806 | -9/Materials | Accompanied by 2 allies 1806 | -9/Materials | Evolved 2 slots: Propulsion x1, Weapon x1 1811 | -9/Materials | Led the pair of lost Derelicts to an unsafe place 2553 | -9/Materials | Discovered new exit (range 4) 2651 | -9/Materials | Build established: Scavenger-Gunner 2873 | -9/Materials | Discovered new exit (range 16) 3124 | -9/Materials | Discovered new exit (range 13) 3124 | -9/Materials | Discovered new exit (range 11) 3128 | -9/Materials | Identified exit to Mines 3199 | -9/Materials | Repaired Lgt. Treads 3231 | -9/Materials | Repaired Lgt. Treads 3265 | -9/Materials | Repaired Beam Rifle 3722 | -9/Materials | Build established: Gunner 3891 | -9/Materials | Entered Mines 4218 | -9/Mines | Build established: Scavenger-Gunner 4284 | -9/Mines | Discovered new exit (range 12) 4473 | -9/Mines | Learned 8 Materials zone layouts 4482 | -9/Mines | A Derelict revealed a hidden shortcut to a safe place 4569 | -9/Mines | Learned location of 1 exit from Materials 4574 | -9/Mines | Discovered new exit (range 5) 4663 | -9/Mines | Entered Materials 4663 | -8/Materials | Evolved 2 slots: Utility x2 4664 | -8/Materials | Identified exit to Storage 4665 | -8/Materials | Identified exit to Factory 4738 | -8/Materials | Garrison activated, responded to threat 5019 | -8/Materials | Lost 7 parts (3n2u2w) 6323 | -8/Materials | Lost 5 parts (2n1u2w) 7463 | -8/Materials | Entered Storage 7921 | -8/Storage | Build established: Gunner 8155 | -8/Storage | Core integrity fell below 50% 8313 | -8/Storage | Build established: Scavenger-Gunner 8373 | -8/Storage | Used back door to open Recycling access 8373 | -8/Storage | Discovered new exit (range 4) 8380 | -8/Storage | Entered Recycling 9151 | -8/Recycling | Discovered new exit (range 6) 9337 | -8/Recycling | Scanned before Scraplab entrance 9933 | -8/Recycling | Angered Scraplab inhabitants 10065 | -8/Recycling | Found Prototype Device 10067 | -8/Recycling | Identified Scrap Engine 10544 | -8/Recycling | Build established: Mutant 10847 | -8/Recycling | Build established: Construct 10920 | -8/Recycling | Entered Factory 10920 | -6/Factory | Evolved 4 slots: Propulsion x1, Utility x3 10944 | -6/Factory | Discovered new exit (range 11) 10955 | -6/Factory | Identified exit to Lower Caves 11463 | -6/Factory | Build established: Assassin 11866 | -6/Factory | Build established: Construct 11961 | -6/Factory | Discovered new exit (range 13) 11975 | -6/Factory | Identified exit to Factory 11979 | -6/Factory | Entered another Factory area 11979 | -5/Factory | Evolved 2 slots: Power x1, Utility x1 12503 | -5/Factory | Discovered new exit (range 15) 12533 | -5/Factory | Identified exit to Factory 12713 | -5/Factory | Entered another Factory area 12713 | -4/Factory | Evolved 2 slots: Utility x2 12898 | -4/Factory | Identified exit to Upper Caves 12898 | -4/Factory | Identified exit to Extension 13072 | -4/Factory | Entered Extension 13134 | -4/Extension | Rescued a captive Derelict 13135 | -4/Extension | Rescued a captive Derelict 13228 | -4/Extension | Rescued a captive Derelict 13277 | -4/Extension | Energy Cycler disabled 13277 | -4/Extension | Rescued a captive Derelict 13278 | -4/Extension | Rescued a captive Derelict 13279 | -4/Extension | Rescued a captive Derelict 13280 | -4/Extension | Rescued a captive Derelict 13281 | -4/Extension | Rescued a captive Derelict 13283 | -4/Extension | Rescued a captive Derelict 13284 | -4/Extension | Rescued a captive Derelict 13286 | -4/Extension | Rescued a captive Derelict 13288 | -4/Extension | Rescued a captive Derelict 13291 | -4/Extension | Rescued a captive Derelict 13428 | -4/Extension | Spotted B-86 Titan 13469 | -4/Extension | Destroyed B-86 Titan 13494 | -4/Extension | Lost 7 allies 13520 | -4/Extension | Spotted B-86 Titan 13551 | -4/Extension | Destroyed B-86 Titan 13613 | -4/Extension | Discovered new exit (range 16) 14070 | -4/Extension | Discovered new exit (range 10) 14071 | -4/Extension | Discovered new exit (range 6) 14075 | -4/Extension | Build established: Commander-Mutant 14079 | -4/Extension | Identified exit to Cetus 14104 | -4/Extension | Entered Cetus 14104 | -4/Cetus | Accompanied by 11 allies 14119 | -4/Cetus | Spotted Cetus Guard 14119 | -4/Cetus | Spotted Cetus Guard 14120 | -4/Cetus | Spotted Cetus Guard 14126 | -4/Cetus | Spotted Cetus Guard 14128 | -4/Cetus | Allies destroyed Cetus Guard 14136 | -4/Cetus | Allies destroyed Cetus Guard 14137 | -4/Cetus | Allies destroyed Cetus Guard 14164 | -4/Cetus | Lost 6 allies 14189 | -4/Cetus | Discovered new exit (range 16) 14287 | -4/Cetus | Spotted Cetus Guard 14287 | -4/Cetus | Spotted Cetus Guard 14295 | -4/Cetus | Destroyed Cetus Guard 14295 | -4/Cetus | Spotted Cetus Guard 14299 | -4/Cetus | Destroyed Cetus Guard 14299 | -4/Cetus | Destroyed Cetus Guard 14299 | -4/Cetus | Spotted Cetus Guard 14310 | -4/Cetus | Allies destroyed Cetus Guard 14323 | -4/Cetus | Discovered new exit (range 16) 14329 | -4/Cetus | Met Revision 17 14412 | -4/Cetus | Identified exit to Archives 14413 | -4/Cetus | Entered Archives 14508 | -4/Archives | Discovered new exit (range 16) 14513 | -4/Archives | Discovered new exit (range 16) 14555 | -4/Archives | Discovered new exit (range 16) 14602 | -4/Archives | Build established: Scavenger-Mutant 14953 | -4/Archives | Identified exit to Hub_04(d) 14954 | -4/Archives | Entered Hub_04(d) 15111 | -4/Hub_04(d) | Discovered new exit (range 16) 15235 | -4/Hub_04(d) | Identified exit to Research 15271 | -4/Hub_04(d) | Entered Research 15271 | -3/Research | Evolved 2 slots: Propulsion x1, Utility x1 15471 | -3/Research | Revision forces began assault on 0b10 15580 | -3/Research | Build established: Scavenger-Assassin 15688 | -3/Research | Met up with Revision 17++ 15849 | -3/Research | Discovered new exit (range 13) 15864 | -3/Research | Identified exit to Research 15885 | -3/Research | Identified exit to Armory 15885 | -3/Research | Identified exit to Testing 15971 | -3/Research | Research terminal network offline 16249 | -3/Research | Entered Testing 16561 | -3/Testing | Found Prototype Processor 16561 | -3/Testing | Identified Exp. Target Analyzer 16622 | -3/Testing | Assembled infested ambush trap array 16670 | -3/Testing | System corruption reached 10% 16708 | -3/Testing | Lost 5 parts (2p1n2u) 16718 | -3/Testing | Crushed by falling debris 16831 | -3/Testing | Core integrity fell below 50% 16844 | -3/Testing | Core integrity fell below 20% 16875 | -3/Testing | Lost 17 parts (2p4n7u4w) 16894 | -3/Testing | Destroyed by Y-72 Warden with Railgun Last Messages --------------- 16842_ Slug penetrates Wall. 16842_ Penetrated by Slug. 16843_ Slug penetrates Phase Constrictor. 16844_ Slug penetrates Wall. 16844_ Force Lance destroyed. 16844_ Slug penetrates Phase Constrictor. 16845_ Extracted 21 energy. 16846_ System corrupted: Energy discharge (-21). 16846_ Extracted 21 energy. 16846_ Slug penetrates Wall. 16847_ Penetrated by Slug. 16855_ Acquired Prototype Flight Unit. 16855_ Identified Cld. Nuclear Pulse Thruster. 16862_ Acquired Prototype Flight Unit. 16862_ Identified Imp. Diametric Drive. 16886_ Cld. Nuclear Pulse Thruster destroyed. 16886_ Slug penetrates Door. 16893_ P-80 Master resets U-05 Engineer, system corruption cleaned. 16893_ Penetrated by Slug. Map ----- +----------------------------------------------------+ | " "## ##??# +?????# ####### #???? | | " ""## ##??# #?????# #???### ##### | | "! "## ##??# #?????# #?? # * | | #"""!!## ##??# #?????# #?? # ###+####### | | # ?#""## ????# #?????# #? # # # | | ???#####?????# #?????# #?""" # # + | | ???#####?????# ####### # """ # # # | | ?????????????# # """ # # # | | ???????# ##### + # # + | | ???????# # """ # + ## | | ???????# ####+##"####### # """ # # #? | | ??????# ???# ##u #?""" # # #? | | ??????# ????# ## #? # ###########? | | ??????###????# ## #?? ! #+##+#####??????? | | ?????????????# ! ## #??#### #?????? | | ?????????????############ #?????# #?????? | | ????????????????????????# #?????#[ =#?????? | | ????????????????????????# #?????# ! #?????? | | ????????????????????????# #?????###########?????? | | ????????????????????????# R#?????????????????????? | | ????????????????????????# #?????????????????????? | | ????????????????????????# #?????????????????????? | | ????????????????????????# #?????????????????????? | | ????????????????????????# #?????????????????????? | | ????????????????????????# #?????????????????????? | | ????????????????????????#@ #?????????????????????? | | ??????????????????????? uu??????????????????? | | ????????????????????? g #??????????????? | | ????????????????????###+#### ####??????????????? | | ???????????????????????????? #?????????????????? | | ???????????????????????????? YY#?????????????????? | | ?????????????????????????????###?????????????????? | | ?????????????????????????????????????????????????? | | ?????????????????????????????????????????????????? | | ?????????????????????????????????????????????????? | | ?????????????????????????????????????????????????? | | ?????????????????????????????????????????????????? | | ?????????????????????????????????????????????????? | | ?????????????????????????????????????????????????? | | ?????????????????????????????????????????????????? | | ?????????????????????????????????????????????????? | | ?????????????????????????????????????????????????? | | ?????????????????????????????????????????????????? | | ?????????????????????????????????????????????????? | | ?????????????????????????????????????????????????? | | ?????????????????????????????????????????????????? | | ?????????????????????????????????????????????????? | | ?????????????????????????????????????????????????? | | ?????????????????????????????????????????????????? | | ?????????????????????????????????????????????????? | +----------------------------------------------------+ Best States ------------- Heat Dissipation 103 Energy Generation 39 Energy Capacity 530 Matter Stores 300 Matter Capacity 300 Sight Range 16 Robot Scan Range 15 Terrain Scan Density 10 Armor Coverage 450 Utility Shielding 66 Evasion (%) 65 Targeting Accuracy 8 Recoil Reduction 4 Defensive Hacking 14 Item Schematics ----------------- Structural Scanner | -8/Materials | Scanalyzed Robot Schematics ------------------ None Fabricated ------------ Nothing Alien Tech Used ----------------- None Achievements -------------- Revising The Future Revolutionary Research System Compromised Universal Adapter Challenges ------------ None Game ------ Seed ArmorImpulseField Manual? 0 Play Time 02:56:24 Cumulative 12.5 hours Start 2025.03.26 @ 14:18:58 End 2025.03.26 @ 17:21:09 Sessions 1 Manual Loads 0 Difficulty Rogue Special Mode None Game No. 5 Rogue 5 Adventurer 0 Explorer 0 Win Type - Total 1 Types 0/0/1/0/0/0/0/0/0 Lore% 10 Gallery% 19 Achievement% 39 Wizard Run 0 Options --------- Layout 1 ASCII 0 Keyboard 0 Movement Arrows Keybinds 0 Fullscreen 2 Font 24/Terminus Map View 50x35 Zoom Use 0% Tactical HUD 1 Map Filters NONE Filters NONE Steam 0 RUN: fa59d77c-3f82-4f34-b286-8f47173f7ccc